bitfinex-derivatives/quotes_ETHF0:USTF0_20251013
["timestamp","ask_amount","ask_price","bid_price","bid_amount"]
[1760386975342,0.4522,4253.3,4253.2,0.237]
[1760386976349,0.7633,4253.2,4253.1,3.21069541]
[1760386976844,0.7633,4253.2,4253.1,3.63351541]
[1760386978342,1.0602,4253.2,4253.1,3.21069541]
[1760386978848,1.0602,4253.2,4253.1,3.63352541]
[1760386980044,0.4522,4253.2,4253.1,3.63352541]
[1760386980249,0.184,4253.5,4253.3,0.42281]
[1760386980547,0.4522,4253.4,4253.3,0.42281]
[1760386981047,0.4522,4253.4,4253.2,0.42282]
[1760386981238,0.4522,4253.3,4253.2,0.42282]
[1760386982150,0.56800909,4253.3,4253.2,0.42282]
[1760386982651,0.4522,4253.7,4253.6,0.42278]
[1760386982842,1.02025052,4253.7,4253.6,0.65978]
[1760386983741,0.56805052,4253.7,4253.6,0.65978]
[1760386984245,1.02025052,4253.7,4253.6,0.65978]
[1760386984443,1.02025052,4253.7,4253.6,3.86758]
[1760386985044,0.56805052,4253.7,4253.6,3.86758]
[1760386985446,0.45410266,4254.3,4254.2,0.42272]
[1760386985653,0.57007401,4254.3,4254.2,0.65972]
[1760386986347,0.4522,4254.1,4254.0,0.42274]
[1760386986642,1.02037135,4254.1,4254.0,0.65974]
[1760386989245,0.56817135,4254.1,4254.0,0.65974]
[1760386989555,0.00190266,4254.3,4254.2,0.42272]
[1760386989845,0.56952597,4254.3,4254.2,0.42272]
[1760386990244,1.02172597,4254.3,4254.2,0.42272]
[1760386991550,1.02172597,4254.3,4254.2,0.237]
[1760386991946,1.02172597,4254.3,4254.2,0.65972]
[1760386994654,0.608,4253.7,4253.6,0.42278]
[1760386994855,0.608,4253.7,4253.5,3.2078]
[1760386994856,1.48298,4253.6,4253.5,3.2078]
[1760386995152,2.0505614,4253.6,4253.5,3.2078]
[1760386996356,0.1932,4253.5,4253.2,0.65982]
[1760386996558,1.3541814,4253.4,4253.2,0.237]
[1760386996747,1.0313814,4253.3,4253.2,0.237]
[1760386997349,1.3541814,4253.3,4253.2,0.237]
[1760386998148,1.0313814,4253.3,4253.2,0.237]
[1760386998555,0.184,4254.0,4253.9,0.42275]
[1760386998860,0.56762503,4254.0,4253.9,0.42275]
[1760386999156,3.20970266,4254.3,4254.2,0.42272]
[1760386999344,3.77725676,4254.3,4254.2,0.65972]
[1760386999547,0.56945676,4254.3,4254.2,0.65972]
[1760386999762,1.03325676,4254.3,4254.2,0.65972]
[1760387000751,0.56945676,4254.3,4254.2,0.65972]
[1760387001350,1.03325676,4254.3,4254.2,0.237]
[1760387001548,0.42274,4254.0,4253.6,0.42277]
[1760387001755,0.1932,4253.5,4253.4,3.2078]
[1760387002052,0.4638,4253.2,4253.1,0.00289541]
[1760387002247,1.68105078,4253.2,4253.1,0.00289541]
[1760387007854,2.10387078,4253.2,4253.1,0.00289541]
[1760387008458,1.68105078,4253.2,4253.1,0.00289541]
[1760387008762,1.68105078,4253.2,4253.1,0.42572541]
[1760387010960,3.401,4253.5,4253.1,0.42572541]
[1760387010961,3.8648,4253.5,4253.4,0.4228]
[1760387011163,5.08151796,4253.5,4253.2,0.42281]
[1760387011458,1.0998,4253.3,4253.1,0.00289541]
[1760387011664,1.0998,4253.3,4253.2,0.42282]
[1760387011966,1.68051146,4253.3,4253.1,0.00289541]
[1760387012265,1.0998,4253.3,4253.1,0.42572541]
[1760387012469,1.21667028,4253.2,4253.1,0.00289541]
[1760387012670,1.68047028,4253.2,4253.1,0.00289541]
[1760387012865,1.68047028,4253.2,4253.1,0.42572541]
[1760387013364,2.10329028,4253.2,4253.1,0.00289541]
[1760387013564,1.68047028,4253.2,4253.1,0.42572541]
[1760387013759,1.04447028,4253.2,4253.1,0.42572541]
[1760387013965,3.8648,4253.5,4253.4,0.4228]
[1760387014268,4.45902077,4253.5,4253.4,0.4228]
[1760387014465,4.78182077,4253.5,4253.4,0.4228]
[1760387014868,1.57402077,4253.5,4253.4,0.4228]
[1760387018474,1.88722077,4253.5,4253.4,0.4228]
[1760387018768,1.0998,4253.2,4253.1,0.00289541]
[1760387018971,2.11684077,4253.2,4253.1,0.00289541]
[1760387019378,5.10800067,4253.2,4253.1,0.00289541]
[1760387019577,1.293,4252.5,4252.4,0.4229]
[1760387019779,1.88722077,4252.5,4252.4,0.4229]
[1760387020184,2.31011077,4252.5,4252.2,0.42291]
[1760387020384,0.7866,4252.3,4252.2,0.42291]
[1760387020683,1.38082077,4252.3,4252.2,0.42562422]
[1760387021784,1.69402077,4252.3,4252.2,0.00271422]
[1760387022176,2.11693077,4252.3,4252.2,0.00271422]
[1760387022882,5.1848081,4252.3,4252.2,0.00271422]
[1760387023584,1.293,4251.5,4251.4,3.2078]
[1760387023783,2.3106127,4251.5,4251.0,0.237]
[1760387023978,0.59463607,4251.4,4251.0,0.42303]
[1760387024180,0.516,4251.0,4250.9,3.2078]
[1760387024379,0.4638,4250.4,4250.0,1.05785]
[1760387024578,0.46555543,4250.4,4250.1,0.237]
[1760387024780,0.46555543,4250.4,4250.3,0.42311]
[1760387025183,1.10395543,4250.4,4250.1,0.42313]
[1760387025383,1.10395543,4250.4,4250.0,0.00180496]
[1760387025384,0.00175543,4250.4,4250.0,0.00180496]
[1760387025891,0.00175543,4250.4,4250.3,0.42311]
[1760387026089,0.00175543,4250.4,4250.3,0.66011]
[1760387026788,0.44645543,4250.4,4250.3,0.66011]
[1760387027986,0.00175543,4250.4,4250.3,0.66011]
[1760387028187,0.1932,4251.5,4251.4,0.423]
[1760387028390,1.2447,4251.5,4251.4,0.423]
[1760387029292,1.2472927,4251.5,4251.4,0.423]
[1760387030488,0.6470927,4251.5,4251.4,3.6308]
[1760387030788,3.2078,4252.3,4251.7,1.05742]
[1760387030789,0.4513,4252.3,4251.7,1.05742]
[1760387030991,3.2078,4252.8,4252.4,0.4229]
[1760387031388,0.4819,4252.5,4252.4,0.4229]
[1760387031589,0.1767,4252.0,4251.9,3.2078]
[1760387031790,0.17739987,4252.5,4252.4,0.4229]
[1760387032093,0.62869987,4252.5,4252.4,0.4229]
[1760387032288,0.93589987,4252.5,4252.4,0.4229]
[1760387032886,0.62869987,4252.5,4252.4,0.4229]
[1760387033086,0.00269987,4252.5,4252.4,3.6307]
[1760387033685,0.63069987,4252.5,4252.4,3.6307]
[1760387034695,0.00269987,4252.5,4252.4,3.6307]
[1760387034898,0.628,4253.5,4253.4,0.4228]
[1760387035795,0.62980285,4253.5,4253.4,0.42565748]
[1760387036591,1.22293473,4253.5,4253.4,0.002]
[1760387036795,0.7585,4253.4,4253.3,0.65981]
[1760387036995,1.64463188,4253.4,4252.6,3.2078]
[1760387037297,0.4513,4252.8,4252.6,3.2078]
[1760387037492,0.1767,4252.0,4251.6,3.2078]
[1760387037692,0.4513,4251.8,4251.6,2.9728]
[1760387037894,1.04443188,4251.7,4251.6,0.00246028]
[1760387038098,4.11967114,4251.7,4251.6,0.00246028]
[1760387038298,0.4513,4250.8,4250.2,0.42311]
[1760387038592,0.4513,4250.4,4250.3,0.237]
[1760387038900,1.04443188,4250.4,4250.3,0.237]
[1760387039197,0.1767,4250.0,4249.6,3.2078]
[1760387039388,0.42316,4249.8,4249.6,0.00192507]
[1760387039589,1.04443188,4249.7,4249.6,0.23892507]
[1760387046795,0.59313188,4249.7,4249.6,3.44672507]
[1760387047496,1.35163188,4249.7,4249.6,0.23892507]
[1760387048306,1.64463188,4249.7,4249.6,0.23892507]
[1760387049202,1.35163188,4249.7,4249.6,0.23892507]
[1760387049397,1.35163188,4249.7,4249.6,0.00192507]
[1760387049603,1.64463188,4249.7,4249.6,0.00192507]
[1760387049895,1.64463188,4249.7,4248.4,0.42329]
[1760387049896,0.1767,4248.5,4248.4,0.42329]
[1760387050098,1.22113188,4248.5,4248.4,0.42329]
[1760387050696,0.76983188,4248.5,4248.2,0.66031]
[1760387051001,0.4513,4248.3,4248.2,0.66258291]
[1760387051201,1.04443188,4248.3,4248.2,0.66258291]
[1760387052104,1.35163188,4248.3,4248.2,0.23927291]
[1760387053405,1.64463188,4248.3,4248.2,0.00227291]
[1760387053704,2.06794188,4248.3,4248.2,0.00227291]
[1760387053898,1.64463188,4248.3,4248.2,0.00227291]
[1760387054506,0.59313188,4248.3,4248.2,0.00227291]
[1760387056905,0.59313188,4248.3,4248.2,0.23927291]
[1760387059095,1.05853188,4248.3,4248.2,0.23927291]
[1760387059500,1.36723188,4248.3,4248.2,0.23927291]
[1760387060010,1.05853188,4248.3,4248.2,0.23927291]
[1760387061602,0.59313188,4248.3,4248.2,0.23927291]
[1760387062704,0.1767,4249.0,4248.9,0.42325]
[1760387063006,0.6421,4249.5,4249.4,0.4232]
[1760387063205,0.6421,4249.5,4249.4,0.6602]
[1760387063405,0.4654,4249.4,4248.6,1.05819]
[1760387063598,0.7741,4249.3,4249.2,0.42321]
[1760387063794,1.0701,4249.3,4249.2,0.237]
[1760387064309,4.2779,4249.3,4249.2,0.66022]
[1760387064705,3.9819,4249.3,4249.2,0.42322]
[1760387064906,3.9819,4249.3,4248.6,1.05818]
[1760387064907,3.5165,4249.3,4248.6,1.05818]
[1760387065108,0.4654,4248.9,4248.8,0.42326]
[1760387067501,1.30702863,4248.9,4248.8,0.42326]
[1760387067704,0.4654,4248.9,4248.8,0.42326]
[1760387068405,1.30702863,4248.9,4248.8,0.42326]
[1760387068707,0.4654,4248.9,4248.8,0.42326]
[1760387069104,0.35822863,4249.0,4248.9,0.42325]
[1760387069309,0.4654,4249.4,4249.3,0.42321]
[1760387069614,0.4654,4249.4,4249.3,3.86801]
[1760387074106,0.4654,4249.4,4248.8,3.2078]
[1760387074416,0.6416,4248.5,4248.4,0.4233]
[1760387074608,0.6416,4248.5,4248.4,0.6603]
[1760387074807,1.30538355,4248.5,4248.4,0.6603]
[1760387075316,0.1762,4249.0,4248.9,0.42325]
[1760387075512,0.1762,4249.5,4248.9,0.42325]
[1760387075513,0.1762,4249.5,4249.4,0.4232]
[1760387075712,0.1762,4249.5,4249.4,3.868]
[1760387077111,0.1762,4250.5,4249.9,0.42315]
[1760387077308,0.6416,4250.0,4249.9,3.86795]
[1760387079119,0.1762,4250.0,4249.9,3.86795]
[1760387082916,0.1762,4250.5,4250.4,0.4231]
[1760387083119,0.6416,4250.5,4250.4,3.8679]
[1760387083915,0.64358196,4250.5,4250.4,3.8679]
[1760387085112,0.64358196,4250.5,4250.4,3.6309]
[1760387085312,0.64358196,4250.5,4249.9,3.2078]
[1760387085313,0.6625,4250.0,4249.9,3.2078]
[1760387085515,0.6625,4250.0,4249.9,3.4448]
[1760387087218,0.6625,4250.0,4249.9,3.86795]
[1760387087424,1.30286974,4250.0,4249.9,3.86795]
[1760387089224,0.6625,4250.0,4249.9,3.86795]
[1760387089418,1.30317047,4250.0,4249.9,3.86795]
[1760387091627,0.82467047,4250.0,4249.9,3.86795]
[1760387091821,0.184,4250.0,4249.9,3.86795]
[1760387092521,0.17818196,4250.5,4250.4,0.4231]
[1760387092828,0.17818196,4250.5,4250.4,3.8679]
[1760387093528,0.1762,4251.0,4250.9,0.42305]
[1760387093727,0.81228285,4251.0,4250.9,3.4448]
[1760387093931,1.29098285,4251.0,4250.9,3.4448]
[1760387094530,1.29319067,4251.0,4250.9,3.4448]
[1760387100423,0.191,4250.5,4250.1,3.2078]
[1760387100629,0.4787,4250.3,4250.2,0.237]
[1760387102135,0.4787,4250.3,4250.1,3.2078]
[1760387102136,0.4787,4250.2,4250.1,3.2078]
[1760387102335,0.4787,4250.2,4250.1,3.4448]
[1760387103330,0.4787,4250.2,4250.1,3.86793]
[1760387103531,0.6697,4250.5,4250.4,0.4231]
[1760387103837,0.81766473,4250.5,4250.4,0.237]
[1760387105341,0.81766473,4250.5,4250.4,0.6601]
[1760387105342,1.29636473,4250.5,4250.4,0.6601]
[1760387106044,1.29636473,4250.5,4250.4,0.237]
[1760387106334,1.29703681,4250.5,4250.2,0.42311]
[1760387106530,0.62733681,4250.4,4250.1,3.2078]
[1760387106736,0.90182,4250.2,4250.1,3.2078]
[1760387107037,1.10603681,4250.2,4250.1,3.4448]
[1760387108935,1.10603681,4250.2,4250.1,3.86793]
[1760387109140,1.10603681,4250.2,4250.1,3.4448]
[1760387109532,0.6697,4249.5,4249.4,3.2078]
[1760387109842,0.191,4249.0,4248.2,0.00227291]
[1760387110026,0.191,4249.5,4248.9,3.63104]
[1760387110232,0.6697,4249.5,4249.4,3.2078]
[1760387110537,1.29707257,4249.5,4249.4,3.2078]
[1760387110843,1.29707257,4249.5,4249.4,3.4448]
[1760387111039,0.81837257,4249.5,4249.4,3.4448]
[1760387112341,0.191,4249.5,4249.4,3.4448]
[1760387116339,1.34164356,4249.5,4249.4,3.4448]
[1760387117038,0.87244356,4249.5,4249.4,3.4448]
[1760387118236,0.87244356,4249.5,4249.4,3.868]
[1760387118436,1.34169241,4249.5,4249.4,3.868]
[1760387119032,1.64859241,4249.5,4249.4,3.4448]
[1760387119239,1.34169241,4249.5,4249.4,3.4448]
[1760387119539,0.87249241,4249.5,4249.4,3.868]
[1760387119842,1.34169241,4249.5,4249.4,3.868]
[1760387121848,0.191,4250.0,4249.9,0.42315]
[1760387122040,0.6602,4250.0,4249.9,3.63095]
[1760387122346,0.6602,4250.0,4249.9,3.2078]
[1760387122536,0.6602,4250.0,4249.4,3.2078]
[1760387122537,0.6455,4249.5,4249.4,3.2078]
[1760387122740,0.6455,4249.5,4249.4,3.4448]
[1760387124849,0.1763,4249.0,4248.9,3.2078]
[1760387125146,0.6455,4249.0,4248.9,3.4448]
[1760387129747,0.6455,4249.0,4248.9,3.86804]
[1760387130453,0.1763,4249.0,4248.9,3.86804]
[1760387130751,0.6455,4249.0,4248.9,3.86804]
[1760387131645,0.1763,4249.0,4248.9,3.86804]
[1760387132450,0.6455,4249.0,4248.9,3.86804]
[1760387133845,1.32341326,4249.0,4248.9,3.86804]
[1760387134551,2.05354326,4249.0,4248.9,3.2078]
[1760387134752,2.05354326,4249.0,4248.9,3.4448]
[1760387135752,1.32341326,4249.0,4248.9,3.4448]
[1760387136149,1.32341326,4249.0,4248.9,3.86804]
[1760387136350,1.32341326,4249.0,4248.9,3.4448]
[1760387136753,1.32341326,4249.0,4248.9,3.86804]
[1760387142755,0.85421326,4249.0,4248.9,3.86804]
[1760387142958,0.1763,4249.5,4249.4,0.42319]
[1760387143152,0.1763,4249.5,4249.4,3.86799]
[1760387144456,0.6455,4249.5,4249.4,3.86799]
[1760387145058,0.1763,4249.5,4249.4,3.86799]
[1760387146254,0.6368,4249.5,4249.4,3.86799]
[1760387147760,0.1763,4249.5,4249.4,3.86799]
[1760387148456,0.191,4250.0,4249.9,0.42314]
[1760387148754,0.191,4250.0,4249.9,3.86794]
[1760387148955,0.191,4250.5,4250.4,0.42309]
[1760387149147,0.191,4250.5,4250.4,3.86789]
[1760387150156,0.6667,4250.5,4250.4,3.86789]
[1760387151351,0.191,4250.5,4250.4,3.86789]
[1760387153847,0.6667,4250.5,4250.4,3.86789]
[1760387155053,0.191,4250.5,4250.4,3.86789]
[1760387155754,0.4757,4250.9,4250.8,0.42305]
[1760387155955,0.1763,4251.0,4250.9,0.42304]
[1760387156162,0.86211102,4251.0,4250.9,3.63084]
[1760387156753,0.1763,4251.0,4250.9,3.63084]
[1760387156952,0.178228,4251.0,4250.9,3.63084]
[1760387157155,0.001928,4251.0,4250.9,3.63084]
[1760387157849,0.1781,4251.5,4251.4,0.42299]
[1760387158054,0.1781,4251.5,4251.4,3.63079]
[1760387158255,1.65799502,4251.5,4251.4,3.2078]
[1760387158456,1.65799502,4251.5,4251.4,3.4448]
[1760387158658,1.65996025,4251.5,4251.4,3.44738575]
[1760387160166,1.98126025,4251.5,4251.4,3.44738575]
[1760387160460,1.98126025,4251.5,4251.4,0.23958575]
[1760387160859,1.98126025,4251.5,4251.4,0.00258575]
[1760387161163,1.98126025,4251.5,4251.4,0.23958575]
[1760387162353,1.98126025,4251.5,4251.4,0.00258575]
[1760387162556,1.1162,4250.8,4250.7,3.2078]
[1760387162763,0.3192,4250.3,4250.2,3.2078]
[1760387162958,0.4757,4250.3,4250.2,3.4448]
[1760387163158,0.1781,4250.5,4250.3,0.4231]
[1760387163463,0.4757,4250.4,4250.3,0.4231]
[1760387163665,0.4757,4250.4,4250.3,0.6620583]
[1760387164060,0.6538,4250.5,4250.3,0.6620583]
[1760387164366,0.1781,4251.0,4250.3,0.2389583]
[1760387164566,0.6848164,4250.9,4250.7,0.42306]
[1760387164863,0.6848164,4250.8,4250.7,0.42306]
[1760387165065,0.6848164,4250.8,4250.7,3.86786]
[1760387165370,0.6848164,4250.8,4250.7,3.4448]
[1760387166065,1.0040164,4250.8,4250.7,3.4448]
[1760387166267,1.4797164,4250.8,4250.7,3.4448]
[1760387166661,1.8010164,4250.8,4250.7,3.2078]
[1760387166965,1.8010164,4250.8,4250.7,3.4448]
[1760387167168,1.1605164,4250.8,4250.7,3.4448]
[1760387167559,1.1605164,4250.8,4250.7,3.86786]
[1760387167772,0.6737164,4250.8,4250.7,3.86786]
[1760387168766,0.6737164,4250.8,4250.7,3.4448]
[1760387168967,0.9929164,4250.8,4250.7,3.2078]
[1760387169268,1.3142164,4250.8,4250.7,3.2078]
[1760387169465,1.7372664,4250.8,4250.7,3.2078]
[1760387169667,0.7949,4250.4,4250.3,0.0019583]
[1760387169861,1.1162,4250.4,4250.3,0.2389583]
[1760387170062,1.53929,4250.4,4250.3,0.2389583]
[1760387170569,1.1162,4250.4,4250.3,0.2389583]
[1760387171372,0.7949,4250.4,4250.3,0.2389583]
[1760387171672,1.21799,4250.4,4250.3,0.2389583]
[1760387171969,0.7949,4250.4,4250.3,0.2389583]
[1760387172667,0.4757,4250.4,4250.3,0.2389583]
[1760387172872,1.1162,4250.4,4250.3,0.0019583]
[1760387173173,1.1162,4250.4,4250.3,0.2389583]
[1760387174264,0.4757,4250.4,4250.3,0.2389583]
[1760387176372,0.7713,4250.4,4250.3,0.2389583]
[1760387177369,0.4757,4250.4,4250.3,0.2389583]
[1760387177668,0.4757,4250.4,4250.3,0.6620583]
[1760387179567,0.4757,4250.4,4250.3,3.4467583]
[1760387179766,1.15718428,4250.4,4250.3,3.4467583]
[1760387179966,1.74818428,4250.4,4250.3,3.2097583]
[1760387180267,2.17127428,4250.4,4250.3,0.0019583]
[1760387180571,1.48564,4249.9,4249.8,3.2078]
[1760387180774,2.16712428,4249.9,4249.8,3.4448]
[1760387181072,1.74398428,4249.9,4249.8,3.4448]
[1760387181474,1.74398428,4249.9,4249.8,3.44660287]
[1760387182674,2.16712428,4249.9,4249.8,3.44660287]
[1760387183272,2.16712428,4249.9,4249.8,3.20960287]
[1760387183471,1.57612428,4249.9,4249.8,3.44660287]
[1760387183669,2.16712428,4249.9,4249.8,3.44660287]
[1760387186881,2.16712428,4249.9,4249.8,0.00180287]
[1760387187078,1.48569,4249.4,4249.3,3.2078]
[1760387187275,0.2956,4248.7,4248.5,3.2078]
[1760387187478,1.74199495,4248.6,4248.5,3.2078]
[1760387187678,1.74199495,4248.6,4248.5,3.4448]
[1760387188179,1.74199495,4248.6,4248.5,3.44655954]
[1760387188379,1.74199495,4248.6,4248.5,0.00175954]
[1760387188682,1.74199495,4248.6,4248.5,0.23875954]
[1760387189380,1.15099495,4248.6,4248.5,0.23875954]
[1760387193172,0.6584,4249.0,4248.9,0.42324]
[1760387193377,0.1869,4249.5,4249.2,0.42321]
[1760387193584,0.1869,4249.5,4249.4,3.2078]
[1760387193782,0.4825,4249.5,4249.4,3.4448]
[1760387194087,0.1869,4249.5,4249.4,3.4448]
[1760387194987,0.4825,4249.5,4249.4,3.4448]
[1760387195487,0.954,4249.5,4249.4,3.4448]
[1760387196284,0.954,4249.5,4249.4,0.237]
[1760387196882,1.37718,4249.5,4249.4,0.237]
[1760387197283,0.42321,4249.3,4248.9,3.2078]
[1760387197481,0.954,4249.0,4248.6,0.42327]
[1760387197786,0.954,4249.0,4248.7,0.237]
[1760387198482,0.954,4249.0,4248.9,3.2078]
[1760387198688,0.6584,4249.0,4248.9,3.4448]
[1760387200684,0.954,4249.0,4248.9,3.4448]
[1760387201294,1.67263,4249.0,4248.9,3.4448]
[1760387201485,0.6584,4249.0,4248.9,3.4448]
[1760387202393,1.37723,4249.0,4248.9,3.4448]
[1760387203701,0.6584,4249.0,4248.9,3.4448]
[1760387203996,0.6584,4249.0,4248.9,3.86804]
[1760387204192,0.6584,4249.0,4248.9,3.4448]
[1760387205197,1.33493837,4249.0,4248.9,3.4448]
[1760387205796,1.33493837,4249.0,4248.9,3.86804]
[1760387210893,0.1869,4249.5,4249.4,0.42319]
[1760387211089,0.1869,4249.5,4249.4,3.86799]
[1760387211295,0.1869,4249.5,4249.4,3.4448]
[1760387213005,0.6616,4249.5,4249.4,3.4448]
[1760387213405,1.08478,4249.5,4249.4,3.4448]
[1760387215102,1.69618,4249.5,4249.4,3.2078]
[1760387215299,1.07923,4249.0,4248.9,3.2078]
[1760387215503,1.07923,4249.0,4248.9,3.4448]
[1760387219003,0.42327,4248.6,4248.5,0.00175954]
[1760387219208,1.50937,4248.6,4248.5,0.00175954]
[1760387219499,1.50937,4248.6,4248.5,0.23875954]
[1760387220302,1.50937,4248.6,4248.5,0.00175954]
[1760387223013,0.6114,4247.1,4246.9,3.2078]
[1760387223312,0.6114,4247.1,4245.9,0.237]
[1760387223313,0.4787,4246.0,4245.9,0.237]
[1760387223510,1.94212996,4246.0,4245.9,0.237]
[1760387223915,1.0861,4245.3,4245.2,3.2078]
[1760387224101,0.4747,4244.9,4244.8,0.237]
[1760387224612,0.1813,4245.0,4244.8,0.237]
[1760387224912,0.4747,4244.9,4244.8,0.23911364]
[1760387226209,0.4747,4244.9,4244.8,0.00211364]
[1760387226511,0.4747,4244.9,4244.8,0.23911364]
[1760387226912,1.0861,4244.9,4244.8,0.00211364]
[1760387227114,1.0861,4244.9,4244.8,0.23911364]
[1760387227307,1.0861,4244.9,4244.8,0.00211364]
[1760387227511,0.2974,4244.3,4244.2,0.237]
[1760387227811,0.7721,4244.3,4244.2,0.237]
[1760387228002,0.4747,4244.3,4244.2,0.237]
[1760387228206,1.182507,4244.3,4244.2,0.237]
[1760387228409,1.182507,4244.3,4244.2,0.23989672]
[1760387229016,0.1813,4244.5,4244.3,0.4237]
[1760387229202,0.1813,4245.0,4244.4,3.2078]
[1760387229403,0.4747,4244.8,4244.5,0.237]
[1760387229611,3.91516683,4244.9,4244.5,0.237]
[1760387229612,0.4747,4244.6,4244.5,0.237]
[1760387230510,0.656,4244.5,4244.4,0.42369]
[1760387230811,0.656,4244.5,4244.4,0.66069]
[1760387232002,1.36942698,4244.5,4244.4,0.237]
[1760387232205,1.66682698,4244.5,4244.4,0.237]
[1760387232614,1.36942698,4244.5,4244.4,0.237]
[1760387234318,3.6825,4244.9,4244.4,0.237]
[1760387234517,3.6825,4244.9,4244.7,0.42366]
[1760387234518,1.18617584,4244.8,4244.7,0.42366]
[1760387235112,0.1813,4245.0,4244.9,0.42365]
[1760387235315,0.1813,4245.0,4244.9,0.66065]
[1760387237511,0.4667,4245.4,4244.9,0.66065]
[1760387237715,0.4667,4245.4,4245.3,0.42361]
[1760387238010,1.1780522,4245.4,4245.3,0.66061]
[1760387238211,0.7113522,4245.4,4245.3,0.66061]
[1760387238517,0.1813,4245.5,4245.3,0.66061]
[1760387238716,0.648,4245.5,4245.3,0.66061]
[1760387240021,0.4667,4245.4,4245.3,0.66061]
[1760387240221,0.1813,4245.5,4245.3,0.66061]
[1760387240624,0.4667,4245.4,4245.3,0.42361]
[1760387240922,0.4667,4245.4,4245.3,0.66061]
[1760387241123,1.17956629,4245.4,4245.3,0.66061]
[1760387242125,0.4667,4245.3,4245.0,0.42363]
[1760387242313,0.1948,4245.0,4244.7,3.2078]
[1760387242621,0.1948,4245.0,4244.8,0.237]
[1760387242622,1.47746629,4244.9,4244.8,0.237]
[1760387242823,1.47746629,4244.9,4244.7,3.63146]
[1760387243022,0.71286629,4244.8,4244.7,3.63146]
[1760387243222,0.71286629,4244.8,4244.7,3.86846]
[1760387244820,0.1813,4245.5,4245.4,0.4236]
[1760387245023,0.4792,4245.5,4245.4,0.4236]
[1760387245326,1.2565,4245.5,4245.4,0.6606]
[1760387245820,0.6615,4245.0,4244.9,0.42365]
[1760387246016,0.6615,4245.0,4244.9,0.66065]
[1760387248215,0.6615,4245.0,4244.7,3.2078]
[1760387248216,0.6615,4245.0,4244.8,0.42366]
[1760387248416,1.27,4245.0,4244.9,0.66065]
[1760387248824,1.27,4245.0,4244.9,0.237]
[1760387249025,1.27,4245.0,4244.9,0.66065]
[1760387249724,0.9594,4245.0,4244.9,0.66065]
[1760387250125,1.27,4245.0,4244.9,0.42365]
[1760387250424,0.9594,4245.0,4244.9,0.66065]
[1760387250626,0.6615,4245.0,4244.9,0.66065]
[1760387251719,0.1948,4245.0,4244.9,0.66065]
[1760387253424,0.1813,4245.5,4245.4,0.4236]
[1760387253624,0.65072262,4246.0,4245.9,0.42355]
[1760387253824,0.65072262,4246.0,4245.9,0.66055]
[1760387254331,0.65072262,4246.0,4245.9,3.86835]
[1760387254629,0.94862262,4246.0,4245.9,3.86835]
[1760387254932,0.65072262,4246.0,4245.9,3.86835]
[1760387256725,1.34161365,4246.0,4245.9,3.86835]
[1760387256920,1.34161365,4246.0,4245.9,3.63135]
[1760387257129,1.34161365,4246.0,4245.9,3.86835]
[1760387257921,0.87491365,4246.0,4245.9,3.86835]
[1760387258426,1.34161365,4246.0,4245.9,3.86835]
[1760387259924,0.648,4246.5,4246.4,0.4235]
[1760387260129,0.648,4246.5,4246.4,3.8683]
[1760387260825,0.1948,4247.5,4247.4,0.4234]
[1760387261026,0.80600118,4247.5,4247.4,0.66343929]
[1760387261526,0.80600118,4247.5,4247.4,0.00303929]
[1760387261724,0.1948,4246.5,4246.2,3.2078]
[1760387261917,0.2979,4246.3,4246.2,3.63132]
[1760387262116,0.2979,4246.3,4246.2,3.86832]
[1760387262424,0.4927,4246.5,4246.2,3.4448]
[1760387262622,0.4927,4246.5,4246.4,0.4235]
[1760387262927,0.9594,4246.5,4246.4,0.42654065]
[1760387263725,1.27,4246.5,4246.4,0.66354065]
[1760387264323,1.27,4246.5,4246.4,0.42654065]
[1760387264530,1.27,4246.5,4246.4,0.00304065]
[1760387264932,1.27,4246.5,4246.4,0.24004065]
[1760387265130,0.6615,4246.5,4246.4,0.24004065]
[1760387265629,0.1948,4246.5,4246.4,0.24004065]
[1760387266330,0.1948,4247.0,4246.9,0.42345]
[1760387266633,0.6452,4247.0,4246.9,0.66045]
[1760387267728,0.6452,4247.0,4246.9,0.42345]
[1760387268024,0.6452,4247.0,4246.9,0.66045]
[1760387268734,0.6452,4247.0,4246.9,0.42345]
[1760387268927,0.9574,4247.0,4246.9,0.66045]
[1760387269630,0.6452,4247.0,4246.9,0.66045]
[1760387270534,0.6452,4247.0,4246.9,3.86825]
[1760387271028,0.65330118,4247.5,4246.9,3.2078]
[1760387271234,0.6505,4247.0,4246.9,3.63125]
[1760387271532,0.1947,4247.0,4246.9,3.86825]
[1760387271929,0.1947,4247.0,4246.9,3.63125]
[1760387272129,0.6505,4247.0,4246.9,3.86825]
[1760387272930,0.6505,4247.0,4246.9,3.63125]
[1760387273136,0.6505,4247.0,4246.9,3.86825]
[1760387273334,0.9647,4247.0,4246.9,3.86825]
[1760387273535,0.6505,4247.0,4246.9,3.86825]
[1760387276134,0.1947,4247.0,4246.9,3.86825]
[1760387276831,0.6505,4247.0,4246.9,3.63125]
[1760387277036,0.6505,4247.0,4246.9,3.86825]
[1760387281033,0.1948,4248.0,4247.9,0.42335]
[1760387281239,0.1947,4247.5,4247.3,3.2078]
[1760387281540,0.4558,4247.4,4247.3,3.63121]
[1760387281842,0.4558,4247.4,4247.3,3.86821]
[1760387282246,0.00257556,4247.4,4247.3,3.86821]
[1760387282840,0.00257556,4247.4,4247.3,3.63121]
[1760387283149,0.00257556,4247.4,4247.3,3.86821]
[1760387286144,0.45837556,4247.4,4247.3,3.86821]
[1760387286449,0.45837556,4247.4,4247.3,3.63121]
[1760387286747,0.45837556,4247.4,4247.3,3.86821]
[1760387286948,0.77257556,4247.4,4247.3,3.86821]
[1760387287350,0.45837556,4247.4,4247.3,3.86821]
[1760387288440,0.00257556,4247.4,4247.3,3.86821]